[Event "18th Charleroi Open-A 2019"]
[Site "Charleroi"]
[Date "2019.08.02"]
[Round "8.27"]
[White "Godry, Clement"]
[Black "Miulescu, Gabriel"]
[Result "1/2-1/2"]
[ECO "E94"]
[WhiteElo "1962"]
[BlackElo "2020"]
[Annotator "NA"]
[PlyCount "69"]
[EventDate "2019.07.22"]
[EventType "swiss"]
[EventCountry "BEL"]
[SourceTitle "playchess.com"]
[Source "ChessBase"]
[SourceQuality "1"]
[TimeControl "40/5400+30:1800+30"]

1. d4 {[%emt 0:00:00]} Nf6 {[%emt 0:00:00]} 2. c4 {[%emt 0:00:00]} g6 {[%emt 0:00:00]} 3. Nc3 {[%emt 0:00:00]} Bg7 {[%emt 0:00:00]} 4. e4 {[%emt 0:00:00]} d6 {[%emt 0:00:00]} 5. Nf3 {[%emt 0:00:01]} O-O {[%emt 0:00:00]} 6. Be2 {[%emt 0:00:13]} e5 {[%emt 0:00:02]} 7. O-O {[%emt 0:00:24]} Na6 {[%emt 0:00:04]} 8. Be3 {[%emt 0:00:34]} Ng4 {[%emt 0:00:21]} 9. Bg5 {[%emt 0:00:40]} Qe8 {[%emt 0:00:10]} 10. h3 {[%emt 0:00:41]} h6 {[%emt 0:01:09]} 11. Bc1 {[%emt 0:00:17]} Nf6 {[%emt 0:01:41]} 12. dxe5 {[%emt 0:01:05]} dxe5 {[%emt 0:00:27]} 13. Be3 {[%emt 0:00:07]} Qe7 {[%emt 0:03:37]} 14. Nd5 {[%emt 0:03:01]} Qd6 {[%emt 0:04:34]} 15. Qc2 {[%emt 0:08:22]} c6 {[%emt 0:02:55]} 16. c5 {[%emt 0:05:25]} Qd8 {[%emt 0:03:03]} 17. Nxf6+ {[%emt 0:00:35]} Qxf6 {[%emt 0:00:42]} 18. Bxa6 {[%emt 0:05:06]} bxa6 {[%emt 0:00:18]} 19. Rfd1 {[%emt 0:00:05]} Be6 {[%emt 0:01:53]} 20. Rd6 {[%emt 0:00:46]} Rfc8 {[%emt 0:00:28]} 21. Qa4 {[%emt 0:03:43]} Rab8 {[%emt 0:02:16]} 22. Rxc6 {[%emt 0:02:25]} Rxc6 {[%emt 0:02:59]} 23. Qxc6 {[%emt 0:00:14]} Rxb2 {[%emt 0:01:06]} 24. Rc1 {[%emt 0:11:35]} Qe7 {[%emt 0:16:31]} 25. Ne1 {[%emt 0:27:55]} Bxa2 {[%emt 0:08:05]} 26. Qxa6 {[%emt 0:04:38]} Be6 {[%emt 0:02:31]} 27. c6 {[%emt 0:01:21]} Qc7 {[%emt 0:02:28]} 28. Qxa7 {[%emt 0:00:28]} Qxa7 {[%emt 0:00:33]} 29. Bxa7 {[%emt 0:00:03]} Ra2 {[%emt 0:02:29]} 30. Bb8 {[%emt 0:01:30]} Rd2 {[%emt 0:03:53]} 31. Nf3 {[%emt 0:01:37]} Rd8 {[%emt 0:01:20]} 32. Bxe5 {[%emt 0:01:25]} Rc8 {[%emt 0:01:00]} 33. Bxg7 {[%emt 0:01:03]} Kxg7 {[%emt 0:00:08]} 34. Nd4 {[%emt 0:01:16]} Kf6 {[%emt 0:02:31]} 35. f4 {[%emt 0:01:07]} 1/2-1/2

[Event "18th Charleroi Open-A 2019"]
[Site "Charleroi"]
[Date "2019.08.02"]
[Round "8.28"]
[White "Ramacker, Quinten"]
[Black "Godde, Matthias"]
[Result "1-0"]
[ECO "D85"]
[WhiteElo "2006"]
[BlackElo "1989"]
[Annotator "NA"]
[PlyCount "46"]
[EventDate "2019.07.22"]
[EventType "swiss"]
[EventCountry "BEL"]
[SourceTitle "playchess.com"]
[Source "ChessBase"]
[SourceQuality "1"]
[TimeControl "40/5400+30:1800+30"]

1. d4 {[%emt 0:00:00]} Nf6 {[%emt 0:00:00]} 2. c4 {[%emt 0:00:00]} g6 {[%emt 0:00:00]} 3. Nc3 {[%emt 0:00:00]} d5 {[%emt 0:00:04]} 4. cxd5 {[%emt 0:00:04]} Nxd5 {[%emt 0:00:05]} 5. e4 {[%emt 0:00:10]} Nxc3 {[%emt 0:00:05]} 6. bxc3 {[%emt 0:00:06]} Bg7 {[%emt 0:00:13]} 7. Qa4+ {[%emt 0:00:08]} Nd7 {[%emt 0:01:34]} 8. Nf3 {[%emt 0:00:54]} O-O {[%emt 0:01:21]} 9. Be2 {[%emt 0:00:34]} c5 {[%emt 0:02:34]} 10. O-O {[%emt 0:02:04]} Qc7 {[%emt 0:13:18]} 11. Bg5 {[%emt 0:06:10]} Nf6 {[%emt 0:06:48]} 12. Bd3 {[%emt 0:10:51]} b6 {[%emt 0:04:00]} 13. Rad1 {[%emt 0:01:46]} Bb7 {[%emt 0:01:58]} 14. d5 {[%emt 0:00:19]} h6 {[%emt 0:14:20]} 15. Bxf6 {[%emt 0:09:55]} Bxf6 {[%emt 0:00:21]} 16. c4 {[%emt 0:00:08]} Bc8 {[%emt 0:05:12]} 17. h3 {[%emt 0:01:24]} Qf4 {[%emt 0:02:12]} 18. Nh2 {[%emt 0:06:28]} h5 {[%emt 0:05:40]} 19. g3 {[%emt 0:00:32]} Qc7 {[%emt 0:01:42]} 20. Kg2 {[%emt 0:00:26]} Bd7 {[%emt 0:02:53]} 21. Qa6 {[%emt 0:00:52]} Kg7 {[%emt 0:01:43]} 22. f4 {[%emt 0:00:38]} e5 {[%emt 0:04:12]} 23. f5 {[%emt 0:07:19]} g5 {[%emt 0:06:56]} 1-0

[Event "18th Charleroi Open-A 2019"]
[Site "Charleroi"]
[Date "2019.08.02"]
[Round "8.30"]
[White "Oupindrin, Narayanin"]
[Black "Lui, Eric"]
[Result "1-0"]
[ECO "A25"]
[WhiteElo "2056"]
[BlackElo "1884"]
[Annotator "NA"]
[PlyCount "56"]
[EventDate "2019.07.22"]
[EventType "swiss"]
[EventCountry "BEL"]
[SourceTitle "playchess.com"]
[Source "ChessBase"]
[SourceQuality "1"]
[TimeControl "40/5400+30:1800+30"]

1. c4 {[%emt 0:00:00]} e5 {[%emt 0:00:00]} 2. g3 {[%emt 0:00:00]} Nf6 {[%emt 0:00:12]} 3. Bg2 {[%emt 0:00:00]} Nc6 {[%emt 0:00:09]} 4. Nc3 {[%emt 0:00:00]} Bc5 {[%emt 0:01:02]} 5. a3 {[%emt 0:00:27]} a5 {[%emt 0:01:11]} 6. e3 {[%emt 0:00:07]} O-O {[%emt 0:00:51]} 7. Nge2 {[%emt 0:00:16]} Re8 {[%emt 0:01:33]} 8. O-O {[%emt 0:00:34]} Ba7 {[%emt 0:01:37]} 9. h3 {[%emt 0:07:23]} d6 {[%emt 0:02:43]} 10. f4 {[%emt 0:02:38]} Qe7 {[%emt 0:09:33]} 11. b3 {[%emt 0:08:47]} Bd7 {[%emt 0:03:29]} 12. Nd5 {[%emt 0:08:44]} Nxd5 {[%emt 0:04:35]} 13. cxd5 {[%emt 0:01:56]} Nb8 {[%emt 0:01:04]} 14. Bb2 {[%emt 0:01:04]} Na6 {[%emt 0:08:26]} 15. Nc3 {[%emt 0:04:10]} f5 {[%emt 0:11:21]} 16. Qc2 {[%emt 0:12:27]} e4 {[%emt 0:06:04]} 17. g4 {[%emt 0:03:37]} Nc5 {[%emt 0:01:41]} 18. g5 {[%emt 0:07:41]} Nd3 {[%emt 0:02:42]} 19. Kh2 {[%emt 0:02:37]} g6 {[%emt 0:02:53]} 20. Rh1 {[%emt 0:07:22]} Qf7 {[%emt 0:03:00]} 21. Bf1 {[%emt 0:01:24]} Nxb2 {[%emt 0:02:21]} 22. Qxb2 {[%emt 0:00:04]} Qg7 {[%emt 0:04:22]} 23. Rb1 {[%emt 0:03:32]} Rab8 {[%emt 0:06:53]} 24. Nb5 {[%emt 0:02:00]} Qxb2 {[%emt 0:04:51]} 25. Rxb2 {[%emt 0:00:02]} Bxb5 {[%emt 0:01:51]} 26. Bxb5 {[%emt 0:00:04]} Red8 {[%emt 0:01:23]} 27. h4 {[%emt 0:01:00]} Ra8 {[%emt 0:01:50]} 28. Kg3 {[%emt 0:00:40]} Bc5 {[%emt 0:00:40]} 1-0

[Event "18th Charleroi Open-A 2019"]
[Site "Charleroi"]
[Date "2019.08.02"]
[Round "8.31"]
[White "Barbier, Astrid"]
[Black "Zamparo, Sergio"]
[Result "0-1"]
[ECO "B90"]
[WhiteElo "1941"]
[BlackElo "2031"]
[Annotator "NA"]
[PlyCount "44"]
[EventDate "2019.07.22"]
[EventType "swiss"]
[EventCountry "BEL"]
[SourceTitle "playchess.com"]
[Source "ChessBase"]
[SourceQuality "1"]
[TimeControl "40/5400+30:1800+30"]

1. e4 {[%emt 0:00:00]} c5 {[%emt 0:00:00]} 2. Nf3 {[%emt 0:00:00]} d6 {[%emt 0:00:07]} 3. d4 {[%emt 0:00:01]} cxd4 {[%emt 0:00:41]} 4. Nxd4 {[%emt 0:00:14]} Nf6 {[%emt 0:00:47]} 5. Nc3 {[%emt 0:00:24]} a6 {[%emt 0:01:15]} 6. f3 {[%emt 0:00:58]} e5 {[%emt 0:00:55]} 7. Nb3 {[%emt 0:00:21]} Be7 {[%emt 0:00:31]} 8. Be3 {[%emt 0:00:43]} Be6 {[%emt 0:00:39]} 9. Qd2 {[%emt 0:00:57]} O-O {[%emt 0:00:24]} 10. a4 {[%emt 0:01:17]} d5 {[%emt 0:01:48]} 11. exd5 {[%emt 0:04:41]} Nxd5 {[%emt 0:01:10]} 12. Nxd5 {[%emt 0:03:24]} Qxd5 {[%emt 0:02:14]} 13. Qxd5 {[%emt 0:03:31]} Bxd5 {[%emt 0:00:47]} 14. c4 {[%emt 0:01:09]} Bb4+ {[%emt 0:04:23]} 15. Kf2 {[%emt 0:00:48]} Bc6 {[%emt 0:05:06]} 16. Be2 {[%emt 0:03:36]} Nd7 {[%emt 0:03:44]} 17. Rhd1 {[%emt 0:01:55]} Rfd8 {[%emt 0:13:11]} 18. Bd3 {[%emt 0:05:51]} Nf6 {[%emt 0:14:06]} 19. Bb6 {[%emt 0:02:31]} Re8 {[%emt 0:08:10]} 20. Bc5 {[%emt 0:09:54]} Rad8 {[%emt 0:10:08]} 21. Bxb4 {[%emt 0:01:04]} Ra8 22. Bc5 Rad8 0-1

[Event "18th Charleroi Open-A 2019"]
[Site "Charleroi"]
[Date "2019.08.03"]
[Round "9.1"]
[White "Gutenev, Alexander"]
[Black "Gurevich, Mikhail"]
[Result "0-1"]
[ECO "B08"]
[WhiteElo "2470"]
[BlackElo "2587"]
[Annotator "ChessBase"]
[PlyCount "110"]
[EventDate "2019.07.22"]
[EventType "swiss"]
[EventCountry "BEL"]
[SourceTitle "playchess.com"]
[Source "ChessBase"]
[SourceQuality "1"]
[TimeControl "40/5400+30:1800+30"]

1. e4 {[%emt 0:00:00]} d6 {[%emt 0:00:00]} 2. d4 {[%emt 0:00:01]} Nf6 {[%emt 0:00:00]} 3. Nc3 {[%emt 0:00:08]} g6 {[%emt 0:00:00]} 4. Nf3 {[%emt 0:00:21]} Bg7 {[%emt 0:00:03]} 5. Be2 {[%emt 0:00:51]} O-O {[%emt 0:00:09]} 6. O-O {[%emt 0:00:04]} Nc6 {[%emt 0:00:37]} 7. d5 {[%emt 0:02:09]} Nb8 {[%emt 0:01:16]} 8. h3 {[%emt 0:00:08]} c6 {[%emt 0:00:46]} 9. Nd4 {[%emt 0:01:40]} Qb6 {[%emt 0:07:05]} 10. Nb3 {[%emt 0:03:59]} a5 {[%emt 0:06:21]} 11. Be3 {[%emt 0:02:24]} Qc7 {[%emt 0:00:04]} 12. a4 {[%emt 0:01:55]} Na6 {[%emt 0:04:36]} 13. Qd2 {[%emt 0:07:16]} Bd7 {[%emt 0:03:15]} 14. Rac1 {[%emt 0:09:12]} Nb4 {[%emt 0:01:13]} 15. Bf3 {[%emt 0:04:24]} Rfc8 {[%emt 0:02:23]} 16. Rfd1 {[%emt 0:02:19]} Qd8 {[%emt 0:00:26]} 17. Nd4 {[%emt 0:07:43]} Qe8 {[%emt 0:10:54]} 18. g4 {[%emt 0:07:37]} Qd8 {[%emt 0:11:22]} 19. Bg2 {[%emt 0:19:25]} Be8 {[%emt 0:02:49]} 20. b3 {[%emt 0:06:52]} Qc7 {[%emt 0:08:24]} 21. g5 {[%emt 0:03:52]} Nd7 {[%emt 0:01:08]} 22. Nce2 {[%emt 0:00:24]} Nc5 {[%emt 0:05:26]} 23. c3 {[%emt 0:00:40]} Nba6 {[%emt 0:00:11]} 24. Rb1 {[%emt 0:04:23]} Rd8 {[%emt 0:03:28]} 25. Qc2 {[%emt 0:01:02]} e5 {[%emt 0:00:59]} 26. dxe6 {[%emt 0:00:13]} Nxe6 {[%emt 0:00:05]} 27. f4 {[%emt 0:01:54]} Bd7 {[%emt 0:02:39]} 28. Nf3 {[%emt 0:01:41]} d5 {[%emt 0:01:48]} 29. f5 {[%emt 0:02:11]} dxe4 {[%emt 0:02:32]} 30. Nh4 {[%emt 0:04:03]} Nec5 {[%emt 0:00:45]} 31. b4 {[%emt 0:01:30]} axb4 {[%emt 0:04:21]} 32. cxb4 {[%emt 0:00:02]} Nd3 {[%emt 0:00:05]} 33. b5 {[%emt 0:02:47]} Nab4 {[%emt 0:00:25]} 34. Qc4 {[%emt 0:00:36]} gxf5 {[%emt 0:00:12]} 35. b6 {[%emt 0:01:31]} Qe5 {[%emt 0:02:36]} 36. Bd4 {[%emt 0:00:39]} Qe6 {[%emt 0:03:57]} 37. Rxb4 {[%emt 0:00:44]} Bxd4+ {[%emt 0:06:56]} 38. Nxd4 {[%emt 0:00:51]} Qxc4 {[%emt 0:00:05]} 39. Rxc4 {[%emt 0:00:02]} Nb2 {[%emt 0:00:05]} 40. Rdc1 {[%emt 0:01:55]} Nxc4 {[%emt 0:00:08]} 41. Rxc4 {[%emt 0:30:06]} Be6 {[%emt 0:30:05]} 42. Nxe6 {[%emt 0:00:00]} fxe6 {[%emt 0:00:00]} 43. Bf1 {[%emt 0:00:00]} Rd2 {[%emt 0:00:00]} 44. Ng2 {[%emt 0:00:00]} Kf7 {[%emt 0:00:00]} 45. h4 {[%emt 0:00:00]} Ra2 {[%emt 0:00:00]} 46. Rd4 {[%emt 0:00:00]} Ke7 {[%emt 0:00:00]} 47. Ne3 {[%emt 0:00:00]} R8xa4 {[%emt 0:00:00]} 48. Rd1 {[%emt 0:00:00]} Ra1 {[%emt 0:00:00]} 49. Rxa1 {[%emt 0:00:00]} Rxa1 {[%emt 0:00:00]} 50. Kg2 {[%emt 0:00:00]} f4 {[%emt 0:00:00]} 51. Ng4 {[%emt 0:00:00]} Rb1 {[%emt 0:00:00]} 52. h5 {[%emt 0:00:00]} Rxb6 {[%emt 0:00:00]} 53. h6 {[%emt 0:00:00]} Rb2+ {[%emt 0:00:00]} 54. Kg1 {[%emt 0:00:00]} Ra2 {[%emt 0:00:00]} 55. Bc4 {[%emt 0:01:07]} Ra5 {[%emt 0:00:00]} 0-1

[Event "18th Charleroi Open-A 2019"]
[Site "Charleroi"]
[Date "2019.08.03"]
[Round "9.2"]
[White "Miezis, Normunds"]
[Black "Lugovskoy, Maxim"]
[Result "*"]
[ECO "C01"]
[WhiteElo "2495"]
[BlackElo "2425"]
[Annotator "ChessBase"]
[PlyCount "30"]
[EventDate "2019.07.22"]
[EventType "swiss"]
[EventCountry "BEL"]
[SourceTitle "playchess.com"]
[Source "ChessBase"]
[SourceQuality "1"]
[TimeControl "40/5400+30:1800+30"]

1. c4 {[%emt 0:00:00]} e6 {[%emt 0:00:00]} 2. e4 {[%emt 0:00:10]} d5 {[%emt 0:00:00]} 3. exd5 {[%emt 0:00:11]} exd5 {[%emt 0:00:04]} 4. d4 {[%emt 0:00:10]} Nf6 {[%emt 0:00:33]} 5. Nc3 {[%emt 0:00:30]} Bb4 {[%emt 0:00:09]} 6. Bd3 {[%emt 0:00:49]} O-O {[%emt 0:00:14]} 7. Nge2 {[%emt 0:00:43]} c5 {[%emt 0:00:03]} 8. O-O {[%emt 0:06:32]} dxc4 {[%emt 0:00:03]} 9. Bxc4 {[%emt 0:00:20]} cxd4 {[%emt 0:00:03]} 10. Nxd4 {[%emt 0:00:48]} Bg4 {[%emt 0:00:03]} 11. Nce2 {[%emt 0:07:14]} Bc5 {[%emt 0:00:04]} 12. Bf4 {[%emt 0:07:02]} Bxe2 {[%emt 0:01:28]} 13. Nxe2 {[%emt 0:05:07]} Qxd1 {[%emt 0:00:03]} 14. Rc1 {[%emt 1:07:24]} Qxf1+ 15. Rxf1 {[%emt 0:00:00]} Nc6 {[%emt 0:00:33]} *

[Event "18th Charleroi Open-A 2019"]
[Site "Charleroi"]
[Date "2019.08.03"]
[Round "9.2"]
[White "Miezis, Normunds"]
[Black "Lugovskoy, Maxim"]
[Result "0-1"]
[ECO "C01"]
[WhiteElo "2495"]
[BlackElo "2425"]
[Annotator "ChessBase"]
[PlyCount "130"]
[EventDate "2019.07.22"]
[EventType "swiss"]
[EventCountry "BEL"]
[SourceTitle "playchess.com"]
[Source "ChessBase"]
[SourceQuality "1"]
[TimeControl "40/5400+30:1800+30"]

1. c4 {[%emt 0:00:00]} e6 {[%emt 0:00:00]} 2. e4 {[%emt 0:00:10]} d5 {[%emt 0:00:00]} 3. exd5 {[%emt 0:00:11]} exd5 {[%emt 0:00:04]} 4. d4 {[%emt 0:00:10]} Nf6 {[%emt 0:00:33]} 5. Nc3 {[%emt 0:00:30]} Bb4 {[%emt 0:00:09]} 6. Bd3 {[%emt 0:00:49]} O-O {[%emt 0:00:14]} 7. Nge2 {[%emt 0:00:43]} c5 {[%emt 0:00:03]} 8. O-O {[%emt 0:06:32]} dxc4 {[%emt 0:00:03]} 9. Bxc4 {[%emt 0:00:20]} cxd4 {[%emt 0:00:03]} 10. Nxd4 {[%emt 0:00:48]} Bg4 {[%emt 0:00:03]} 11. Nce2 {[%emt 0:07:14]} Bc5 {[%emt 0:00:04]} 12. Bf4 {[%emt 0:07:02]} Bxe2 {[%emt 0:01:28]} 13. Nxe2 {[%emt 0:05:07]} Qxd1 {[%emt 0:00:03]} 14. Raxd1 {[%emt 0:00:35]} Nc6 {[%emt 0:00:03]} 15. a3 {[%emt 0:10:32]} Rfe8 {[%emt 0:03:37]} 16. b4 {[%emt 0:03:20]} Bb6 {[%emt 0:00:08]} 17. Ng3 {[%emt 0:12:41]} Nd4 {[%emt 0:29:28]} 18. a4 {[%emt 0:05:30]} Rac8 {[%emt 0:01:46]} 19. Rc1 {[%emt 0:05:07]} Ne6 {[%emt 0:12:20]} 20. Bd6 {[%emt 0:05:26]} Rcd8 {[%emt 0:09:32]} 21. Nf5 {[%emt 0:12:35]} Nd4 {[%emt 0:01:46]} 22. Nxd4 {[%emt 0:00:32]} Rxd6 {[%emt 0:03:06]} 23. Nf5 {[%emt 0:00:21]} Rd2 {[%emt 0:00:20]} 24. a5 {[%emt 0:00:22]} Bd4 {[%emt 0:00:59]} 25. Bb5 {[%emt 0:04:09]} Rd8 {[%emt 0:00:35]} 26. Rc7 {[%emt 0:00:46]} Ne4 {[%emt 0:03:21]} 27. Rxb7 {[%emt 0:03:24]} Bxf2+ {[%emt 0:00:55]} 28. Kh1 {[%emt 0:00:38]} Kf8 {[%emt 0:04:57]} 29. Bc4 {[%emt 0:04:39]} R2d7 {[%emt 0:00:06]} 30. a6 {[%emt 0:00:50]} Bb6 {[%emt 0:10:54]} 31. g3 {[%emt 0:00:29]} Nf2+ {[%emt 0:00:49]} 32. Kg2 {[%emt 0:00:29]} Ng4 {[%emt 0:00:05]} 33. Rd1 {[%emt 0:02:17]} Rd2+ {[%emt 0:03:16]} 34. Rxd2 {[%emt 0:00:37]} Rxd2+ {[%emt 0:00:01]} 35. Be2 {[%emt 0:01:03]} Rxe2+ {[%emt 0:00:49]} 36. Kf3 {[%emt 0:00:03]} Rf2+ {[%emt 0:00:04]} 37. Kxg4 {[%emt 0:00:08]} h5+ {[%emt 0:00:02]} 38. Kh3 {[%emt 0:00:15]} Kg8 {[%emt 0:09:12]} 39. Ne7+ {[%emt 0:00:39]} Kh7 {[%emt 0:00:35]} 40. Nd5 {[%emt 0:00:47]} Bd4 {[%emt 0:00:46]} 41. Nf4 {[%emt 0:09:59]} Kh6 {[%emt 0:03:58]} 42. Rd7 {[%emt 0:00:41]} g5 {[%emt 0:05:13]} 43. Nxh5 {[%emt 0:00:12]} Be5 {[%emt 0:00:07]} 44. Nf4 {[%emt 0:02:59]} f5 {[%emt 0:01:10]} 45. g4 {[%emt 0:02:29]} fxg4+ {[%emt 0:01:12]} 46. Kxg4 {[%emt 0:00:13]} Rxf4+ {[%emt 0:00:03]} 47. Kh3 {[%emt 0:00:10]} Rxb4 {[%emt 0:00:18]} 48. Rxa7 {[%emt 0:00:09]} Rh4+ {[%emt 0:04:06]} 49. Kg2 {[%emt 0:00:22]} Rxh2+ {[%emt 0:00:03]} 50. Kf3 {[%emt 0:00:17]} Ra2 {[%emt 0:00:06]} 51. Ke4 {[%emt 0:00:33]} Bh2 {[%emt 0:01:56]} 52. Ra8 {[%emt 0:00:31]} Kh5 {[%emt 0:01:22]} 53. Rh8+ {[%emt 0:01:55]} Kg4 {[%emt 0:00:04]} 54. a7 {[%emt 0:00:08]} Rxa7 {[%emt 0:00:02]} 55. Rxh2 {[%emt 0:00:10]} Re7+ {[%emt 0:00:01]} 56. Kd3 {[%emt 0:00:17]} Kg3 {[%emt 0:00:06]} 57. Rh8 {[%emt 0:00:31]} g4 {[%emt 0:00:06]} 58. Rg8 {[%emt 0:00:11]} Kf3 {[%emt 0:00:06]} 59. Rf8+ {[%emt 0:00:07]} Kg2 {[%emt 0:00:03]} 60. Rg8 {[%emt 0:00:13]} g3 {[%emt 0:00:04]} 61. Kd2 {[%emt 0:00:15]} Kf2 {[%emt 0:00:09]} 62. Rf8+ {[%emt 0:00:32]} Kg1 {[%emt 0:00:03]} 63. Rf3 {[%emt 0:00:23]} g2 {[%emt 0:00:09]} 64. Rf8 {[%emt 0:00:07]} Rh7 {[%emt 0:00:14]} 65. Ke2 {[%emt 0:00:31]} Kh2 {[%emt 0:00:16]} 0-1

[Event "18th Charleroi Open-A 2019"]
[Site "Charleroi"]
[Date "2019.08.03"]
[Round "9.3"]
[White "Anciaux, Marc"]
[Black "Mirzoev, Azer"]
[Result "0-1"]
[ECO "B12"]
[WhiteElo "2120"]
[BlackElo "2474"]
[Annotator "ChessBase"]
[PlyCount "84"]
[EventDate "2019.07.22"]
[EventType "swiss"]
[EventCountry "BEL"]
[SourceTitle "playchess.com"]
[Source "ChessBase"]
[SourceQuality "1"]
[TimeControl "40/5400+30:1800+30"]

1. e4 {[%emt 0:00:00]} c6 {[%emt 0:00:00]} 2. d4 {[%emt 0:00:00]} d5 {[%emt 0:00:00]} 3. Nd2 {[%emt 0:00:01]} g6 {[%emt 0:00:16]} 4. Ngf3 {[%emt 0:00:25]} Bg7 {[%emt 0:00:03]} 5. c3 {[%emt 0:00:16]} Nh6 {[%emt 0:00:10]} 6. Be2 {[%emt 0:03:40]} O-O {[%emt 0:00:15]} 7. O-O {[%emt 0:00:15]} a5 {[%emt 0:00:10]} 8. a4 {[%emt 0:00:13]} Na6 {[%emt 0:00:06]} 9. exd5 {[%emt 0:06:56]} cxd5 {[%emt 0:00:27]} 10. Nb3 {[%emt 0:01:00]} b6 {[%emt 0:02:27]} 11. Bf4 {[%emt 0:04:40]} f6 {[%emt 0:01:26]} 12. Qd2 {[%emt 0:01:54]} Nf7 {[%emt 0:00:24]} 13. Rfe1 {[%emt 0:05:58]} Ra7 {[%emt 0:00:54]} 14. h3 {[%emt 0:04:23]} Nc7 {[%emt 0:00:45]} 15. Bxc7 {[%emt 0:09:48]} Rxc7 {[%emt 0:00:27]} 16. Bb5 {[%emt 0:04:07]} e5 {[%emt 0:05:05]} 17. dxe5 {[%emt 0:00:49]} fxe5 {[%emt 0:00:05]} 18. Rad1 {[%emt 0:00:14]} Bb7 {[%emt 0:00:08]} 19. Qe2 {[%emt 0:01:18]} Qf6 {[%emt 0:02:13]} 20. Nh2 {[%emt 0:04:12]} h5 {[%emt 0:02:32]} 21. Nf1 {[%emt 0:06:31]} Nd6 {[%emt 0:02:33]} 22. Ne3 {[%emt 0:03:09]} Nxb5 {[%emt 0:03:18]} 23. axb5 {[%emt 0:00:12]} Qf7 {[%emt 0:01:44]} 24. Nd2 {[%emt 0:06:03]} Rc5 {[%emt 0:04:22]} 25. f3 {[%emt 0:03:31]} Kh7 {[%emt 0:02:28]} 26. Qd3 {[%emt 0:04:01]} Rcc8 {[%emt 0:02:29]} 27. Ndf1 {[%emt 0:01:46]} Rfd8 {[%emt 0:01:14]} 28. Re2 {[%emt 0:03:11]} Qf8 {[%emt 0:01:53]} 29. Red2 {[%emt 0:01:39]} Qc5 {[%emt 0:02:03]} 30. Kh1 {[%emt 0:00:17]} Bh6 {[%emt 0:07:56]} 31. Re2 {[%emt 0:05:18]} Bf4 {[%emt 0:00:31]} 32. Nc2 {[%emt 0:07:21]} Qc7 {[%emt 0:01:49]} 33. Nce3 {[%emt 0:04:41]} Rd7 {[%emt 0:01:45]} 34. g3 {[%emt 0:02:17]} Bh6 {[%emt 0:00:22]} 35. Kg2 {[%emt 0:00:23]} Rf8 {[%emt 0:01:01]} 36. Nd2 {[%emt 0:00:32]} Rff7 {[%emt 0:02:43]} 37. Rf1 {[%emt 0:01:39]} Qc5 {[%emt 0:03:54]} 38. Nb3 {[%emt 0:00:44]} Qf8 {[%emt 0:00:18]} 39. Ref2 {[%emt 0:00:55]} a4 {[%emt 0:01:26]} 40. Nd2 {[%emt 0:00:23]} Qc5 {[%emt 0:02:59]} 41. Nc2 {[%emt 0:30:55]} Rfe7 {[%emt 0:32:10]} 42. Re2 {[%emt 0:00:00]} e4 {[%emt 0:00:00]} 0-1

[Event "18th Charleroi Open-A 2019"]
[Site "Charleroi"]
[Date "2019.08.03"]
[Round "9.4"]
[White "Klinova, Masha"]
[Black "Goormachtigh, Johan"]
[Result "1/2-1/2"]
[ECO "B25"]
[WhiteElo "2269"]
[BlackElo "2164"]
[Annotator "NA"]
[PlyCount "92"]
[EventDate "2019.07.22"]
[EventType "swiss"]
[EventCountry "BEL"]
[SourceTitle "playchess.com"]
[Source "ChessBase"]
[SourceQuality "1"]
[TimeControl "40/5400+30:1800+30"]

1. e4 {[%emt 0:00:00]} c5 {[%emt 0:00:00]} 2. Nc3 {[%emt 0:00:00]} Nc6 {[%emt 0:00:09]} 3. g3 {[%emt 0:00:00]} g6 {[%emt 0:00:44]} 4. Bg2 {[%emt 0:00:00]} Bg7 {[%emt 0:00:07]} 5. d3 {[%emt 0:00:00]} d6 {[%emt 0:01:08]} 6. f4 {[%emt 0:00:40]} e6 {[%emt 0:03:21]} 7. Nf3 {[%emt 0:06:16]} Nge7 {[%emt 0:00:16]} 8. O-O {[%emt 0:00:06]} O-O {[%emt 0:00:08]} 9. Be3 {[%emt 0:03:54]} b6 {[%emt 0:03:13]} 10. Bf2 {[%emt 0:03:06]} e5 {[%emt 0:15:34]} 11. Qd2 {[%emt 0:04:03]} Nd4 {[%emt 0:24:31]} 12. Be3 {[%emt 0:18:54]} Nxf3+ {[%emt 0:07:08]} 13. Rxf3 {[%emt 0:01:55]} Bg4 {[%emt 0:00:24]} 14. Rf2 {[%emt 0:00:36]} exf4 {[%emt 0:10:24]} 15. gxf4 {[%emt 0:10:04]} Qd7 {[%emt 0:04:41]} 16. Raf1 {[%emt 0:07:39]} Rae8 {[%emt 0:17:14]} 17. Kh1 {[%emt 0:02:18]} f5 {[%emt 0:00:30]} 18. h3 {[%emt 0:01:13]} Bh5 {[%emt 0:00:11]} 19. Re1 {[%emt 0:08:00]} Bf6 {[%emt 0:01:22]} 20. Rff1 {[%emt 0:00:26]} Bh4 {[%emt 0:05:45]} 21. Bf2 {[%emt 0:01:34]} Bf6 {[%emt 0:00:19]} 22. Bg3 {[%emt 0:07:10]} Bg7 {[%emt 0:00:56]} 23. Bh4 {[%emt 0:00:34]} Kh8 {[%emt 0:01:00]} 24. Kh2 {[%emt 0:04:20]} b5 {[%emt 0:00:17]} 25. a3 {[%emt 0:04:10]} a5 {[%emt 0:00:12]} 26. Nd5 {[%emt 0:07:52]} Nxd5 {[%emt 0:00:21]} 27. exd5 {[%emt 0:00:04]} b4 {[%emt 0:00:14]} 28. axb4 {[%emt 0:00:38]} axb4 {[%emt 0:00:02]} 29. c3 {[%emt 0:00:28]} bxc3 {[%emt 0:00:14]} 30. bxc3 {[%emt 0:00:04]} Rxe1 {[%emt 0:00:45]} 31. Rxe1 {[%emt 0:00:36]} Re8 {[%emt 0:00:04]} 32. Bf2 {[%emt 0:00:21]} Kg8 {[%emt 0:01:25]} 33. c4 {[%emt 0:02:26]} Bf6 {[%emt 0:00:46]} 34. Re6 {[%emt 0:00:19]} Rxe6 {[%emt 0:02:11]} 35. dxe6 {[%emt 0:00:07]} Qa4 {[%emt 0:00:27]} 36. Bd5 {[%emt 0:00:53]} Kf8 {[%emt 0:00:31]} 37. d4 {[%emt 0:00:53]} Be7 {[%emt 0:01:14]} 38. Qb2 {[%emt 0:00:20]} Qb4 {[%emt 0:00:37]} 39. Qa2 {[%emt 0:00:36]} Qb8 {[%emt 0:00:33]} 40. Kg3 {[%emt 0:04:02]} h6 {[%emt 0:00:27]} 41. Qa3 {[%emt 0:03:41]} g5 {[%emt 0:08:19]} 42. Be3 {[%emt 0:09:18]} Qb1 {[%emt 0:15:02]} 43. dxc5 {[%emt 0:10:07]} gxf4+ {[%emt 0:03:10]} 44. Bxf4 {[%emt 0:00:52]} Qe1+ {[%emt 0:00:46]} 45. Kg2 {[%emt 0:00:34]} Qe2+ {[%emt 0:00:19]} 46. Kg1 {[%emt 0:01:30]} Qe1+ {[%emt 0:05:59]} 1/2-1/2